fUST/lending_fUST_20250827
["ID","MTS","AMOUNT","RATE_DAILY","PERIOD"]
[381571541,1756288239387,-480.0,0.00022644,2]
[381571542,1756288239396,-480.0,0.00022644,2]
[381571543,1756288239405,-1114.16,0.00022644,2]
[381571544,1756288239414,-480.0,0.00022644,2]
[381571545,1756288239424,-480.0,0.00022644,2]
[381571546,1756288239433,-480.0,0.00022644,2]
[381571547,1756288239442,-480.0,0.00022644,2]
[381571548,1756288239451,-480.0,0.00022644,2]
[381571550,1756288239460,-480.0,0.00022644,2]
[381571552,1756288239470,-567.71,0.00022644,2]
[381571554,1756288239479,-2448.58,0.00022644,2]
[381571556,1756288239489,-194.03894444,0.00022644,2]
[381571557,1756288239498,-4501.32,0.00022644,2]
[381571558,1756288239509,-548.51,0.00022644,2]
[381571559,1756288239519,-480.0,0.00022644,2]
[381571560,1756288239528,-480.0,0.00022644,2]
[381571561,1756288239538,-480.0,0.00022644,2]
[381571562,1756288239547,-846.39,0.00022644,2]
[381571563,1756288239557,-545.36,0.00022644,2]
[381571565,1756288239567,-480.0,0.00022644,2]
[381571567,1756288239577,-489.85,0.00022644,2]
[381571569,1756288239586,-480.0,0.00022644,2]
[381571571,1756288239596,-480.0,0.00022644,2]
[381571573,1756288239606,-1623.33,0.00022644,2]
[381571576,1756288239615,-480.0,0.00022644,2]
[381571578,1756288239625,-151.0,0.00022644,2]
[381571580,1756288239634,-151.0,0.00022644,2]
[381571582,1756288239644,-151.0,0.00022644,2]
[381571584,1756288239653,-480.0,0.00022644,2]
[381571586,1756288239663,-151.0,0.00022644,2]
[381571588,1756288239672,-151.0,0.00022644,2]
[381571590,1756288239682,-161.87469292,0.00022644,2]
[381571593,1756288239692,-1060.8,0.00022644,2]
[381571594,1756288239701,-276.60101797,0.00022644,2]
[381571595,1756288239711,-1528.40832601,0.00022648,2]
[381571596,1756288239721,-601.84,0.00022672,2]
[381571597,1756288239730,-480.0,0.00022673,2]
[381571598,1756288239740,-3222.59,0.00022673,2]
[381571599,1756288239755,-480.0,0.00022673,2]
[381571600,1756288239765,-537.98,0.00022673,2]
[381571601,1756288239775,-480.0,0.00022673,2]
[381571602,1756288239784,-480.0,0.00022673,2]
[381571603,1756288239795,-2446.49,0.00022673,2]
[381571604,1756288239804,-151.0,0.000227,9]
[381571605,1756288239814,-151.0,0.000227,8]
[381571606,1756288239824,-1000.0,0.00022742,2]
[381571607,1756288239834,-842.43,0.00022742,2]
[381571608,1756288239844,-151.0,0.000228,10]
[381571609,1756288239853,-160.0,0.00022805,2]
[381571610,1756288239862,-5909.144497,0.00022808,2]
[381571611,1756288239872,-747.76232398,0.00022809,2]
[381571612,1756288239882,-12206.0213176,0.00022809,2]
[381571613,1756288239891,-3658.42673085,0.0002281,2]
[381571614,1756288239903,-1808.79011503,0.0002281,3]
[381571615,1756288239912,-1764.0,0.0002281,3]
[381571616,1756288239922,-1764.0,0.0002281,3]
[381571617,1756288239932,-1764.0,0.0002281,3]
[381571618,1756288239941,-601.84,0.00022812,2]
[381571619,1756288239951,-1379.86,0.00022813,2]
[381571620,1756288239961,-639.28,0.00022813,2]
[381571621,1756288239971,-269.83277598,0.00022813,2]
[381571622,1756288239981,-5703.66,0.00022813,2]
[381571623,1756288239990,-2385.93,0.00022813,2]
[381571624,1756288240000,-494.16,0.00022813,2]
[381571625,1756288240009,-962.42,0.00022813,2]
[381571626,1756288240019,-6065.37,0.00022813,2]
[381571627,1756288240029,-3545.42,0.00022813,2]
[381571628,1756288240038,-520.47,0.00022813,2]
[381571629,1756288240048,-601.84,0.00022818,2]
[381571630,1756288240060,-511.79,0.00022819,2]
[381571631,1756288240070,-480.0,0.00022819,2]
[381571632,1756288240080,-480.0,0.00022819,2]
[381571633,1756288240089,-480.0,0.00022819,2]
[381571634,1756288240099,-480.0,0.00022819,2]
[381571635,1756288240108,-480.0,0.00022819,2]
[381571636,1756288240118,-480.0,0.00022819,2]
[381571637,1756288240128,-480.0,0.00022819,2]
[381571638,1756288240137,-480.0,0.00022819,2]
[381571639,1756288240147,-480.0,0.00022819,2]
[381571640,1756288240157,-480.0,0.00022819,2]
[381571641,1756288240166,-480.0,0.00022819,2]
[381571642,1756288240176,-480.0,0.00022819,2]
[381571643,1756288240185,-480.0,0.00022819,2]
[381571644,1756288240195,-684.54,0.00022819,2]
[381571645,1756288240204,-480.0,0.00022819,2]
[381571646,1756288240214,-480.0,0.00022819,2]
[381571647,1756288240224,-480.0,0.00022819,2]
[381571648,1756288240233,-480.0,0.00022819,2]
[381571649,1756288240243,-567.16,0.00022819,2]
[381571650,1756288240252,-480.0,0.00022819,2]
[381571651,1756288240262,-480.0,0.00022819,2]
[381571652,1756288240271,-540.74,0.00022819,2]
[381571653,1756288240281,-480.0,0.00022819,2]
[381571654,1756288240291,-480.0,0.00022819,2]
[381571655,1756288240301,-480.0,0.00022819,2]
[381571656,1756288240311,-1915.45,0.00022819,2]
[381571657,1756288240321,-480.0,0.00022819,2]
[381571658,1756288240331,-480.0,0.00022819,2]
[381571659,1756288240341,-480.0,0.00022819,2]
[381571660,1756288240351,-566.54,0.00022819,2]
[381571661,1756288240362,-480.0,0.00022819,2]
[381571662,1756288240371,-506.14,0.00022819,2]
[381571663,1756288240381,-480.0,0.00022819,2]
[381571664,1756288240391,-480.0,0.00022819,2]
[381571665,1756288240400,-480.0,0.00022819,2]
[381571666,1756288240410,-480.0,0.00022819,2]
[381571667,1756288240419,-480.0,0.00022819,2]
[381571668,1756288240429,-480.0,0.00022819,2]
[381571669,1756288240440,-480.0,0.00022819,2]
[381571670,1756288240450,-990.34,0.00022819,2]
[381571671,1756288240459,-480.0,0.00022819,2]
[381571672,1756288240471,-480.0,0.00022819,2]
[381571673,1756288240480,-377.52172376,0.00022819,2]
[381571674,1756288240491,-480.0,0.00022819,2]
[381571675,1756288240501,-484.84,0.00022819,2]
[381571676,1756288240512,-480.0,0.00022819,2]
[381571677,1756288240522,-629.76,0.00022819,2]
[381571678,1756288240532,-480.0,0.00022819,2]
[381571679,1756288240542,-480.0,0.00022819,2]
[381571680,1756288240552,-3194.45,0.00022819,2]
[381571681,1756288240561,-480.0,0.00022819,2]
[381571682,1756288240571,-712.63,0.00022819,2]
[381571683,1756288240581,-480.0,0.00022819,2]
[381571684,1756288240591,-480.0,0.00022819,2]
[381571685,1756288240600,-405.99057147,0.00022819,2]
[381571686,1756288240610,-480.0,0.00022819,2]
[381571687,1756288240620,-480.0,0.00022819,2]
[381571688,1756288240629,-480.0,0.00022819,2]
[381571689,1756288240639,-5424.02,0.00022819,2]
[381571690,1756288240649,-609.82051804,0.00022819,2]
[381571691,1756288240659,-759.1,0.00022819,2]
[381571692,1756288240669,-480.0,0.00022819,2]
[381571693,1756288240679,-829.41,0.00022819,2]
[381571694,1756288240688,-480.0,0.00022819,2]
[381571695,1756288240698,-480.0,0.00022819,2]
[381571696,1756288240707,-593.9,0.00022819,2]
[381571697,1756288240718,-480.0,0.00022819,2]
[381571698,1756288240729,-524.28,0.00022819,2]
[381571699,1756288240739,-1496.51,0.00022819,2]
[381571700,1756288240758,-480.0,0.00022819,2]
[381571701,1756288240768,-2079.2,0.00022819,2]
[381571702,1756288240779,-480.0,0.00022819,2]
[381571703,1756288240789,-480.0,0.00022819,2]
[381571704,1756288240800,-480.0,0.00022819,2]
[381571705,1756288240810,-778.95,0.00022819,2]
[381571706,1756288240820,-480.0,0.00022819,2]
[381571707,1756288240830,-480.0,0.00022819,2]
[381571708,1756288240840,-480.0,0.00022819,2]
[381571709,1756288240850,-480.0,0.00022819,2]
[381571710,1756288240860,-853.98,0.00022819,2]
[381571711,1756288240869,-480.0,0.00022819,2]
[381571712,1756288240880,-480.0,0.00022819,2]
[381571713,1756288240890,-480.0,0.00022819,2]
[381571714,1756288240899,-554.37,0.00022819,2]
[381571715,1756288240910,-1187.29,0.00022819,2]
[381571716,1756288240919,-480.0,0.00022819,2]
[381571717,1756288240929,-480.0,0.00022819,2]
[381571718,1756288240938,-480.0,0.00022819,2]
[381571719,1756288240947,-480.0,0.00022819,2]
[381571720,1756288240957,-480.0,0.00022819,2]
[381571721,1756288240967,-658.92,0.00022819,2]
[381571722,1756288240977,-480.0,0.00022819,2]
[381571723,1756288240987,-549.29195571,0.00022819,2]
[381571724,1756288240997,-480.0,0.00022819,2]
[381571725,1756288241006,-480.0,0.00022819,2]
[381571726,1756288241015,-728.31,0.00022819,2]
[381571727,1756288241025,-4172.81541695,0.0002282,2]
[381571728,1756288241035,-800.0,0.00022821,2]
[381571729,1756288241045,-601.84,0.00022835,2]
[381571730,1756288241055,-601.84,0.00022841,2]
[381571731,1756288241065,-601.84,0.00022841,2]
[381571732,1756288241075,-512.14,0.00022842,2]
[381571733,1756288241085,-480.0,0.00022842,2]
[381571734,1756288241094,-480.0,0.00022842,2]
[381571735,1756288241104,-483.23,0.00022842,2]
[381571736,1756288241115,-480.0,0.00022842,2]
[381571737,1756288241125,-480.0,0.00022842,2]
[381571738,1756288241136,-722.14,0.00022842,2]
[381571739,1756288241146,-480.0,0.00022842,2]
[381571740,1756288241156,-480.0,0.00022842,2]
[381571741,1756288241166,-480.0,0.00022842,2]
[381571742,1756288241176,-480.0,0.00022842,2]
[381571743,1756288241188,-480.0,0.00022842,2]
[381571744,1756288241197,-519.21,0.00022842,2]
[381571745,1756288241207,-480.0,0.00022842,2]
[381571746,1756288241217,-480.0,0.00022842,2]
[381571747,1756288241228,-480.0,0.00022842,2]
[381571748,1756288241238,-480.0,0.00022842,2]
[381571749,1756288241247,-520.4,0.00022842,2]
[381571750,1756288241256,-480.0,0.00022842,2]
[381571751,1756288241266,-480.0,0.00022842,2]
[381571752,1756288241275,-480.0,0.00022842,2]
[381571753,1756288241285,-480.0,0.00022842,2]
[381571754,1756288241295,-584.23,0.00022842,2]
[381571755,1756288241305,-519.71,0.00022842,2]
[381571756,1756288241315,-480.0,0.00022842,2]
[381571757,1756288241325,-480.0,0.00022842,2]
[381571758,1756288241335,-480.0,0.00022842,2]
[381571759,1756288241345,-955.09,0.00022842,2]
[381571760,1756288241354,-804.4,0.00022842,2]
[381571761,1756288241364,-480.0,0.00022842,2]
[381571762,1756288241374,-480.0,0.00022842,2]
[381571763,1756288241383,-480.0,0.00022842,2]
[381571764,1756288241393,-717.47,0.00022842,2]
[381571765,1756288241402,-1454.66,0.00022842,2]
[381571766,1756288241412,-413.34920479,0.00022842,2]
[381571767,1756288241421,-480.0,0.00022842,2]
[381571768,1756288241430,-667.64,0.00022842,2]
[381571769,1756288241440,-480.0,0.00022842,2]
[381571770,1756288241450,-480.0,0.00022842,2]
[381571771,1756288241459,-480.0,0.00022842,2]
[381571772,1756288241469,-599.5,0.00022842,2]
[381571773,1756288241481,-580.22,0.00022842,2]
[381571774,1756288241490,-480.0,0.00022842,2]
[381571775,1756288241500,-666.46,0.00022842,2]
[381571776,1756288241509,-480.0,0.00022842,2]
[381571777,1756288241519,-480.0,0.00022842,2]
[381571778,1756288241528,-480.0,0.00022842,2]
[381571779,1756288241538,-1498.11,0.00022842,2]
[381571780,1756288241548,-337.96127786,0.00022842,2]
[381571781,1756288241557,-865.47,0.00022842,2]
[381571782,1756288241567,-730.48,0.00022842,2]
[381571783,1756288241578,-480.0,0.00022842,2]
[381571784,1756288241588,-706.94,0.00022842,2]
[381571785,1756288241598,-1666.01,0.00022842,2]
[381571786,1756288241608,-480.0,0.00022842,2]
[381571787,1756288241617,-547.92,0.00022842,2]
[381571788,1756288241627,-913.68,0.00022842,2]
[381571789,1756288241636,-480.0,0.00022842,2]
[381571790,1756288241646,-480.0,0.00022842,2]
[381571791,1756288241656,-480.0,0.00022842,2]
[381571792,1756288241666,-480.0,0.00022842,2]
[381571793,1756288241677,-530.0,0.00022842,2]
[381571794,1756288241687,-480.0,0.00022842,2]
[381571795,1756288241698,-566.54,0.00022842,2]
[381571796,1756288241708,-480.0,0.00022842,2]
[381571797,1756288241920,-480.0,0.00022842,2]
[381571798,1756288241939,-593.26,0.00022842,2]
[381571799,1756288241949,-575.53,0.00022842,2]
[381571800,1756288241959,-480.0,0.00022842,2]
[381571801,1756288241969,-574.91,0.00022842,2]
[381571802,1756288241979,-225.28542647,0.00022842,2]
[381571803,1756288241988,-480.0,0.00022842,2]
[381571804,1756288241997,-480.0,0.00022842,2]
[381571805,1756288242008,-480.0,0.00022842,2]
[381571806,1756288242018,-480.0,0.00022842,2]
[381571807,1756288242027,-480.0,0.00022842,2]
[381571808,1756288242037,-482.1165685,0.00022842,2]
[381571809,1756288242046,-1217.34,0.00022842,2]
[381571810,1756288242056,-611.53929845,0.00022842,2]
[381571811,1756288242066,-480.0,0.00022842,2]
[381571812,1756288242075,-480.0,0.00022842,2]
[381571813,1756288242085,-787.41,0.00022842,2]
[381571814,1756288242095,-480.0,0.00022842,2]
[381571815,1756288242104,-480.0,0.00022842,2]
[381571816,1756288242114,-480.0,0.00022842,2]
[381571817,1756288242123,-480.0,0.00022842,2]
[381571818,1756288242133,-480.0,0.00022842,2]
[381571819,1756288242142,-480.0,0.00022842,2]
[381571820,1756288242152,-480.0,0.00022842,2]
[381571821,1756288242162,-480.0,0.00022842,2]
[381571822,1756288242172,-480.0,0.00022842,2]
[381571823,1756288242183,-533.57,0.00022842,2]
[381571824,1756288242193,-480.0,0.00022842,2]
[381571825,1756288242203,-480.0,0.00022842,2]
[381571826,1756288242212,-871.59,0.00022842,2]
[381571827,1756288242222,-480.0,0.00022842,2]
[381571828,1756288242232,-480.0,0.00022842,2]
[381571829,1756288242242,-480.0,0.00022842,2]
[381571830,1756288242252,-480.0,0.00022842,2]
[381571831,1756288242262,-480.0,0.00022842,2]
[381571832,1756288242271,-480.0,0.00022842,2]
[381571833,1756288242282,-480.0,0.00022842,2]
[381571834,1756288242292,-812.35,0.00022842,2]
[381571835,1756288242301,-480.0,0.00022842,2]
[381571836,1756288242310,-613.14,0.00022842,2]
[381571837,1756288242320,-480.0,0.00022842,2]
[381571838,1756288242330,-480.0,0.00022842,2]
[381571839,1756288242340,-480.0,0.00022842,2]
[381571840,1756288242350,-480.0,0.00022842,2]
[381571841,1756288242360,-480.0,0.00022842,2]
[381571842,1756288242369,-480.0,0.00022842,2]
[381571843,1756288242379,-1283.2,0.00022842,2]
[381571844,1756288242389,-480.0,0.00022842,2]
[381571845,1756288242399,-480.0,0.00022842,2]
[381571846,1756288242409,-828.64,0.00022842,2]
[381571847,1756288242419,-480.0,0.00022842,2]
[381571848,1756288242428,-507.03,0.00022842,2]
[381571849,1756288242438,-480.0,0.00022842,2]
[381571850,1756288242448,-494.59,0.00022842,2]
[381571852,1756288242458,-1014.51,0.00022842,2]
[381571853,1756288242467,-618.7,0.00022842,2]
[381571854,1756288242477,-480.0,0.00022842,2]
[381571855,1756288242487,-480.0,0.00022842,2]
[381571856,1756288242498,-480.0,0.00022842,2]
[381571858,1756288242508,-480.0,0.00022842,2]
[381571860,1756288242518,-1160.58,0.00022842,2]
[381571862,1756288242528,-480.0,0.00022842,2]
[381571863,1756288242538,-359.59148184,0.00022842,2]
[381571865,1756288242548,-480.0,0.00022842,2]
[381571866,1756288242558,-480.0,0.00022842,2]
[381571867,1756288242568,-500.0,0.00022842,2]
[381571868,1756288242578,-588.62,0.00022842,2]
[381571869,1756288242588,-582.81,0.00022842,2]
[381571870,1756288242598,-503.12179041,0.00022842,2]
[381571871,1756288242608,-480.0,0.00022842,2]
[381571872,1756288242618,-480.0,0.00022842,2]
[381571873,1756288242627,-480.0,0.00022842,2]
[381571874,1756288242637,-480.0,0.00022842,2]
[381571875,1756288242649,-494.79,0.00022842,2]
[381571876,1756288242659,-514.51136357,0.00022842,2]
[381571877,1756288242669,-713.46,0.00022842,2]
[381571878,1756288242679,-480.0,0.00022842,2]
[381571879,1756288242688,-200.0,0.00022842,10]
[381571880,1756288242698,-200.0,0.00022842,10]
[381571881,1756288242709,-200.0,0.00022842,10]
[381571882,1756288242724,-200.0,0.00022842,10]
[381571883,1756288242735,-200.0,0.00022842,10]
[381571884,1756288242751,-200.0,0.00022842,10]
[381571885,1756288242771,-200.0,0.00022842,10]
[381571886,1756288242782,-486.16,0.00022842,2]
[381571887,1756288242792,-200.0,0.00022842,10]
[381571888,1756288242802,-200.0,0.00022842,10]
[381571889,1756288242812,-200.0,0.00022842,10]
[381571890,1756288242822,-200.0,0.00022842,10]
[381571892,1756288242831,-200.0,0.00022842,10]
[381571893,1756288242841,-200.0,0.00022842,10]
[381571894,1756288242851,-200.0,0.00022842,10]
[381571895,1756288242861,-480.0,0.00022842,2]
[381571896,1756288242871,-200.0,0.00022842,10]
[381571897,1756288242881,-200.0,0.00022842,10]
[381571899,1756288242891,-225.245347,0.00022842,10]
[381571901,1756288242901,-770.51,0.00022843,2]
[381571902,1756288242910,-480.0,0.00022843,2]
[381571903,1756288242920,-898.22,0.00022843,2]
[381571904,1756288242930,-601.84,0.00022844,2]
[381571905,1756288242940,-601.84,0.00022844,2]
[381571906,1756288242950,-601.84,0.00022845,2]
[381571907,1756288242959,-480.0,0.00022845,2]
[381571908,1756288242970,-480.0,0.00022845,2]
[381571909,1756288242980,-816.02,0.00022846,2]
[381571910,1756288242990,-1050.17,0.00022846,2]
[381571911,1756288243000,-685.52,0.00022846,2]
[381571912,1756288243011,-686.0,0.00022846,2]
[381571913,1756288243020,-700.03,0.00022846,2]
[381571914,1756288243030,-921.5,0.00022846,2]
[381571915,1756288243040,-1083.42,0.00022846,2]
[381571916,1756288243050,-480.0,0.00022846,2]
[381571917,1756288243059,-766.36,0.00022846,2]
[381571918,1756288243069,-648.57,0.00022846,2]
[381571919,1756288243078,-480.0,0.00022846,2]
[381571920,1756288243088,-480.0,0.00022846,2]
[381571921,1756288243098,-557.87,0.00022846,2]
[381571922,1756288243107,-480.0,0.00022846,2]
[381571923,1756288243116,-480.0,0.00022846,2]
[381571924,1756288243126,-491.91,0.00022846,2]
[381571925,1756288243136,-303.33954755,0.00022846,2]
[381571926,1756288243145,-1000.0,0.00022848,2]
[381571927,1756288243155,-2719.37153068,0.00022854,2]
[381571928,1756288243164,-502.42490781,0.00022873,2]
[381571929,1756288243173,-500.00915913,0.00022873,2]
[381571930,1756288243183,-500.0,0.00022873,2]
[381571931,1756288243192,-500.0,0.00022873,2]
[381571932,1756288243202,-502.72871208,0.00022873,2]
[381571933,1756288243212,-500.0,0.00022873,2]
[381571934,1756288243223,-500.0,0.00022873,2]
[381571935,1756288243234,-500.0,0.00022873,2]
[381571936,1756288243246,-501.80461637,0.00022873,2]
[381571937,1756288243256,-500.0,0.00022873,2]
[381571938,1756288243266,-500.0,0.00022873,2]
[381571939,1756288243276,-500.0,0.00022873,2]
[381571940,1756288243287,-500.0,0.00022873,2]
[381571941,1756288243298,-500.0,0.00022873,2]
[381571942,1756288243309,-500.0,0.00022873,2]
[381571943,1756288243319,-500.0,0.00022873,2]
[381571944,1756288243330,-500.0,0.00022873,2]
[381571945,1756288243341,-445.06481498,0.00022873,2]
[381571946,1756288243351,-214.04243135,0.00022873,2]
[381571947,1756288243362,-468.30317516,0.00022873,2]
[381571948,1756288243372,-500.0,0.00022873,2]
[381571949,1756288243382,-502.6290904,0.00022873,2]
[381571950,1756288243392,-500.0,0.00022873,2]
[381571951,1756288243402,-502.61902715,0.00022873,2]
[381571952,1756288243412,-161.11718925,0.00022873,2]
[381571953,1756288243422,-480.0,0.00022882,2]
[381571954,1756288243432,-567.4,0.00022882,2]
[381571955,1756288243442,-959.11,0.00022882,2]
[381571956,1756288243452,-1401.83,0.00022882,2]
[381571957,1756288243461,-2249.38,0.00022882,2]
[381571958,1756288243471,-480.0,0.00022883,2]
[381571959,1756288243481,-497.99,0.00022883,2]
[381571960,1756288243492,-480.0,0.00022883,2]
[381571961,1756288243502,-553.57,0.00022883,2]
[381571962,1756288243512,-597.25,0.00022883,2]
[381571963,1756288243522,-480.0,0.00022883,2]
[381571964,1756288243532,-480.0,0.00022883,2]
[381571965,1756288243541,-755.86,0.00022883,2]
[381571966,1756288243551,-1085.75,0.00022883,2]
[381571967,1756288243561,-1573.83,0.00022883,2]
[381571968,1756288243570,-480.0,0.00022883,2]
[381571969,1756288243581,-480.0,0.00022883,2]
[381571970,1756288243590,-480.0,0.00022883,2]
[381571971,1756288243600,-480.0,0.00022883,2]
[381571972,1756288243609,-480.0,0.00022883,2]
[381571973,1756288243619,-499.64,0.00022883,2]
[381571974,1756288243628,-507.21,0.00022883,2]
[381571975,1756288243638,-523.7,0.00022883,2]
[381571976,1756288243648,-943.05,0.00022883,2]
[381571977,1756288243658,-480.0,0.00022883,2]
[381571978,1756288243668,-480.0,0.00022883,2]
[381571979,1756288243677,-480.0,0.00022883,2]
[381571980,1756288243689,-564.27,0.00022883,2]
[381571981,1756288243698,-519.72,0.00022883,2]
[381571982,1756288243708,-617.02,0.00022883,2]
[381571983,1756288243717,-480.0,0.00022883,2]
[381571984,1756288243728,-480.0,0.00022883,2]
[381571985,1756288243738,-911.02,0.00022883,2]
[381571986,1756288243751,-480.0,0.00022883,2]
[381571987,1756288243761,-1463.69,0.00022883,2]
[381571988,1756288243770,-620.71,0.00022883,2]
[381571989,1756288243780,-1304.04,0.00022883,2]
[381571990,1756288243794,-1671.4,0.00022883,2]
[381571991,1756288243804,-864.97,0.00022883,2]
[381571992,1756288243814,-670.9,0.00022883,2]
[381571993,1756288243824,-539.61,0.00022883,2]
[381571994,1756288243834,-480.0,0.00022883,2]
[381571995,1756288243844,-480.0,0.00022883,2]
[381571996,1756288243854,-480.0,0.00022883,2]
[381571997,1756288243864,-1318.43,0.00022883,2]
[381571998,1756288243874,-546.1,0.00022883,2]
[381571999,1756288243884,-870.27,0.00022883,2]
[381572000,1756288243895,-480.0,0.00022883,2]
[381572001,1756288243906,-480.0,0.00022883,2]
[381572002,1756288243916,-1065.29,0.00022883,2]
[381572003,1756288243927,-480.0,0.00022883,2]
[381572004,1756288243938,-490.13,0.00022883,2]
[381572005,1756288243948,-480.0,0.00022883,2]
[381572006,1756288243957,-749.7,0.00022883,2]
[381572007,1756288243967,-579.29,0.00022883,2]
[381572008,1756288243977,-1026.67,0.00022883,2]
[381572009,1756288243987,-525.29,0.00022883,2]
[381572010,1756288243997,-480.0,0.00022883,2]
[381572011,1756288244009,-667.04,0.00022883,2]
[381572012,1756288244019,-306.0,0.00022894,2]
[381572013,1756288244028,-601.84,0.00022899,2]
[381572014,1756288244038,-601.84,0.00022899,2]
[381572015,1756288244048,-601.84,0.00022899,2]
[381572016,1756288244057,-601.84,0.00022899,2]
[381572017,1756288244069,-601.84,0.00022899,2]
[381572018,1756288244079,-94501.98,0.000229,7]
[381572019,1756288244089,-7149.87,0.000229,7]
[381572020,1756288244099,-151.0,0.000229,6]
[381572021,1756288244109,-151.0,0.000229,8]
[381572022,1756288244119,-425.44119842,0.000229,7]
[381572023,1756288244129,-417.15472785,0.000229,7]
[381572024,1756288244138,-216.14835892,0.000229,7]
[381572025,1756288244148,-160.0,0.000229,7]
[381572026,1756288244157,-12707.75045307,0.000229,7]
[381572027,1756288244168,-160.0,0.000229,7]
[381572028,1756288244178,-151.0,0.000229,7]
[381572029,1756288244188,-151.0,0.000229,7]
[381572030,1756288244198,-529.56067766,0.000229,7]
[381572031,1756288244208,-160.0,0.000229,7]
[381572032,1756288244218,-480.0,0.00022915,2]
[381572033,1756288244229,-200.0,0.00022915,2]
[381572034,1756288244238,-811.86,0.00022917,2]
[381572035,1756288244249,-676.41,0.00022918,2]
[381572036,1756288244259,-480.0,0.00022918,2]
[381572037,1756288244269,-516.12417519,0.00022918,2]
[381572038,1756288244279,-480.0,0.00022918,2]
[381572039,1756288244288,-480.0,0.00022918,2]
[381572040,1756288244298,-480.0,0.00022918,2]
[381572041,1756288244362,-480.0,0.00022918,2]
[381572042,1756288244371,-480.0,0.00022918,2]
[381572043,1756288244381,-552.9,0.00022918,2]
[381572044,1756288244390,-480.0,0.00022918,2]
[381572045,1756288244400,-480.0,0.00022918,2]
[381572046,1756288244409,-480.0,0.00022918,2]
[381572047,1756288244419,-480.0,0.00022918,2]
[381572048,1756288244428,-480.0,0.00022918,2]
[381572049,1756288244437,-480.0,0.00022918,2]
[381572050,1756288244445,-480.0,0.00022918,2]
[381572051,1756288244454,-480.0,0.00022918,2]
[381572052,1756288244463,-480.0,0.00022918,2]
[381572053,1756288244472,-480.0,0.00022918,2]
[381572054,1756288244481,-480.0,0.00022918,2]
[381572055,1756288244490,-560.46,0.00022918,2]
[381572056,1756288244499,-323.37968274,0.00022918,2]
[381572057,1756288244508,-480.0,0.00022918,2]
[381572058,1756288244517,-1114.16,0.00022918,2]
[381572059,1756288244527,-480.0,0.00022918,2]
[381572060,1756288244536,-480.0,0.00022918,2]
[381572061,1756288244545,-480.0,0.00022918,2]
[381572062,1756288244555,-480.0,0.00022918,2]
[381572063,1756288244564,-480.0,0.00022918,2]
[381572064,1756288244574,-480.0,0.00022918,2]
[381572065,1756288244583,-567.71,0.00022918,2]
[381572066,1756288244592,-2448.58,0.00022918,2]
[381572067,1756288244602,-4501.32,0.00022918,2]
[381572068,1756288244610,-548.51,0.00022918,2]